fUSD/lending_fUSD_20260530
["ID","MTS","AMOUNT","RATE_DAILY","PERIOD"]
[423413727,1780092327000,-2757.73726004,0.00039379,120]
[423413720,1780092327000,-2757.73726004,0.00039379,120]
[423413721,1780092327000,-2757.73726004,0.00039379,120]
[423413713,1780092327000,-2757.73726004,0.00039379,120]
[423413715,1780092327000,-2757.73726004,0.00039379,120]
[423413712,1780092327000,-2757.73726004,0.00039379,120]
[423413718,1780092327000,-2757.73726004,0.00039379,120]
[423413717,1780092327000,-2757.73726004,0.00039379,120]
[423413716,1780092327000,-2757.73726004,0.00039379,120]
[423413719,1780092327000,-2757.73726004,0.00039379,120]
[423413730,1780092328000,-2757.73726004,0.00039379,120]
[423413731,1780092328000,-2757.73726004,0.00039379,120]
[423413732,1780092328000,-2757.73726004,0.00039379,120]
[423413734,1780092328000,-2757.73726004,0.00039379,120]
[423413733,1780092328000,-2757.73726004,0.00039379,120]
[423413737,1780092328000,-2757.73726004,0.00039379,120]
[423413738,1780092328000,-2757.73726004,0.00039379,120]
[423413739,1780092328000,-1247.719999,0.00039379,120]
[423413736,1780092328000,-2757.73726004,0.00039379,120]
[423413735,1780092328000,-2757.73726004,0.00039379,120]
[423413740,1780092333000,35348.89931115,0.00039379,120]
[423413742,1780092338000,25431.21,0.00039379,120]
[423413741,1780092338000,1081.0,0.00039379,120]
[423413743,1780092345000,2150.34353559,0.00039379,120]
[423413744,1780092357000,500.0,0.00039379,120]
[423413745,1780092359000,1537.0,0.00039379,120]
[423413747,1780092384000,660.30007858,0.00039379,120]
[423413746,1780092384000,660.30007858,0.00039379,120]
[423413748,1780092384000,660.30007858,0.00039379,120]
[423413750,1780092385000,660.30007858,0.00039379,120]
[423413749,1780092385000,660.30007858,0.00039379,120]
[423413754,1780092386000,151.0,0.00039379,120]
[423413753,1780092386000,660.30007858,0.00039379,120]
[423413752,1780092386000,660.30007858,0.00039379,120]
[423413751,1780092386000,660.30007858,0.00039379,120]
[423413755,1780092387000,660.30007858,0.00039379,120]
[423413758,1780092387000,660.30007858,0.00039379,120]
[423413757,1780092387000,660.30007858,0.00039379,120]
[423413756,1780092387000,660.30007858,0.00039379,120]
[423413760,1780092388000,660.30007858,0.00039379,120]
[423413759,1780092388000,660.30007858,0.00039379,120]
[423413761,1780092389000,660.30007858,0.00039379,120]
[423413762,1780092390000,660.30007858,0.00039379,120]
[423413763,1780092390000,660.30007858,0.00039379,120]
[423413766,1780092390000,660.30007858,0.00039379,120]
[423413765,1780092390000,660.30007858,0.00039379,120]
[423413764,1780092390000,660.30007858,0.00039379,120]
[423413769,1780092391000,660.30007858,0.00039379,120]
[423413768,1780092391000,660.30007858,0.00039379,120]
[423413767,1780092391000,660.30007858,0.00039379,120]
[423413772,1780092392000,660.30007858,0.00039379,120]
[423413771,1780092392000,660.30007858,0.00039379,120]
[423413770,1780092392000,660.30007858,0.00039379,120]
[423413775,1780092393000,660.30007858,0.00039379,120]
[423413774,1780092393000,660.30007858,0.00039379,120]
[423413773,1780092393000,660.30007858,0.00039379,120]
[423413776,1780092398000,1770.0,0.00039379,120]
[423413777,1780092417000,1204.0,0.00039379,120]
[423413778,1780092418000,677479.24474259,0.00039379,120]
[423413779,1780092429000,200.0,9.5e-05,3]
[423413782,1780092431000,500.0,0.00039379,120]
[423413781,1780092431000,400.0,9.6e-05,3]
[423413780,1780092431000,6136.0,0.00039379,120]
[423413784,1780092433000,404.53641969,9.7e-05,3]
[423413783,1780092433000,195.46358031,9.7e-05,3]
[423413785,1780092435000,800.0,9.8e-05,3]
[423413786,1780092437000,1000.0,9.9e-05,3]
[423413787,1780092438000,15212.46,0.00039379,120]
[423413788,1780092439000,200.0,0.0001,3]
[423413789,1780092443000,24149.0,0.00039379,120]
[423413790,1780092446000,500.0,0.00039379,120]
[423413792,1780092456000,150.44028581,0.00039379,120]
[423413791,1780092456000,150.0,0.00039379,120]
[423413797,1780092472000,200.0,0.00039379,120]
[423413794,1780092472000,620.0,0.00039379,120]
[423413795,1780092472000,200.0,0.00039379,120]
[423413796,1780092472000,500.0,0.00039379,120]
[423413798,1780092472000,220.0,0.00039379,120]
[423413799,1780092472000,642.94,0.00039379,120]
[423413800,1780092472000,151.0,0.00039379,120]
[423413802,1780092472000,1958.52486824,0.00039379,120]
[423413801,1780092472000,200.0,0.00039379,120]
[423413804,1780092472000,160.0,0.00039379,120]
[423413803,1780092472000,518.5,0.00039379,120]
[423413805,1780092472000,151.0,0.00039379,120]
[423413815,1780092473000,200.0,0.00039379,120]
[423413816,1780092473000,220.0,0.00039379,120]
[423413813,1780092473000,160.0,0.00039379,120]
[423413814,1780092473000,156.587,0.00039379,120]
[423413812,1780092473000,151.0,0.00039379,120]
[423413809,1780092473000,200.0,0.00039379,120]
[423413810,1780092473000,156.587,0.00039379,120]
[423413818,1780092473000,691.39774486,0.00039379,120]
[423413807,1780092473000,220.0,0.00039379,120]
[423413806,1780092473000,200.0,0.00039379,120]
[423413808,1780092473000,666.72878,0.00039379,120]
[423413811,1780092473000,537.6845,0.00039379,120]
[423413817,1780092473000,200.0,0.00039379,120]
[423413823,1780092473000,160.0,0.00039379,120]
[423413820,1780092473000,200.0,0.00039379,120]
[423413819,1780092473000,162.380719,0.00039379,120]
[423413833,1780092473000,160.0,0.00039379,120]
[423413831,1780092473000,162.380719,0.00039379,120]
[423413830,1780092473000,716.97946141,0.00039379,120]
[423413829,1780092473000,200.0,0.00039379,120]
[423413827,1780092473000,200.0,0.00039379,120]
[423413828,1780092473000,168.3888056,0.00039379,120]
[423413825,1780092473000,200.0,0.00039379,120]
[423413832,1780092473000,578.20924308,0.00039379,120]
[423413824,1780092473000,162.380719,0.00039379,120]
[423413822,1780092473000,156.587,0.00039379,120]
[423413821,1780092473000,557.5788265,0.00039379,120]
[423413826,1780092473000,220.0,0.00039379,120]
[423413842,1780092474000,200.0,0.00039379,120]
[423413847,1780092474000,200.0,0.00039379,120]
[423413845,1780092474000,220.0,0.00039379,120]
[423413846,1780092474000,181.08010149,0.00039379,120]
[423413844,1780092474000,160.0,0.00039379,120]
[423413843,1780092474000,174.61919141,0.00039379,120]
[423413836,1780092474000,174.61919141,0.00039379,120]
[423413839,1780092474000,168.3888056,0.00039379,120]
[423413840,1780092474000,200.0,0.00039379,120]
[423413838,1780092474000,743.50770149,0.00039379,120]
[423413835,1780092474000,220.0,0.00039379,120]
[423413837,1780092474000,200.0,0.00039379,120]
[423413834,1780092474000,168.3888056,0.00039379,120]
[423413848,1780092474000,174.61919141,0.00039379,120]
[423413841,1780092474000,599.60298507,0.00039379,120]
[423413850,1780092474000,218.97758758,0.00039379,120]
[423413853,1780092474000,200.0,0.00039379,120]
[423413851,1780092474000,621.78829552,0.00039379,120]
[423413865,1780092474000,200.0,0.00039379,120]
[423413866,1780092474000,500.0,0.00039379,120]
[423413864,1780092474000,173.65268502,0.00039379,120]
[423413862,1780092474000,186.29814638,0.00039379,120]
[423413863,1780092474000,220.0,0.00039379,120]
[423413859,1780092474000,644.79446245,0.00039379,120]
[423413861,1780092474000,194.72792766,0.00039379,120]
[423413849,1780092474000,771.01748644,0.00039379,120]
[423413858,1780092474000,799.54513344,0.00039379,120]
[423413856,1780092474000,220.0,0.00039379,120]
[423413857,1780092474000,200.0,0.00039379,120]
[423413855,1780092474000,187.78006524,0.00039379,120]
[423413854,1780092474000,160.0,0.00039379,120]
[423413852,1780092474000,181.08010149,0.00039379,120]
[423413860,1780092474000,187.78006524,0.00039379,120]
[423413882,1780092475000,200.0,0.00039379,120]
[423413880,1780092475000,209.40437684,0.00039379,120]
[423413878,1780092475000,859.8060506,0.00039379,120]
[423413879,1780092475000,500.0,0.00039379,120]
[423413877,1780092475000,500.0,0.00039379,120]
[423413875,1780092475000,187.78006524,0.00039379,120]
[423413876,1780092475000,520.0,0.00039379,120]
[423413871,1780092475000,201.93286098,0.00039379,120]
[423413874,1780092475000,200.0,0.00039379,120]
[423413872,1780092475000,151.0,0.00039379,120]
[423413870,1780092475000,194.72792766,0.00039379,120]
[423413868,1780092475000,829.12830338,0.00039379,120]
[423413869,1780092475000,668.65185756,0.00039379,120]
[423413881,1780092475000,693.39197629,0.00039379,120]
[423413873,1780092475000,220.0,0.00039379,120]
[423413867,1780092475000,181.08010149,0.00039379,120]
[423413883,1780092475000,151.0,0.00039379,120]
[423413886,1780092475000,539.24,0.00039379,120]
[423413884,1780092475000,220.0,0.00039379,120]
[423413899,1780092475000,500.0,0.00039379,120]
[423413897,1780092475000,200.0,0.00039379,120]
[423413898,1780092475000,559.19188,0.00039379,120]
[423413896,1780092475000,224.76907207,0.00039379,120]
[423413895,1780092475000,151.0,0.00039379,120]
[423413893,1780092475000,719.04747942,0.00039379,120]
[423413894,1780092475000,201.93286098,0.00039379,120]
[423413891,1780092475000,217.15233878,0.00039379,120]
[423413890,1780092475000,500.0,0.00039379,120]
[423413888,1780092475000,500.0,0.00039379,120]
[423413889,1780092475000,891.61887448,0.00039379,120]
[423413887,1780092475000,194.72792766,0.00039379,120]
[423413885,1780092475000,200.0,0.00039379,120]
[423413892,1780092475000,200.0,0.00039379,120]
[423413909,1780092476000,500.0,0.00039379,120]
[423413913,1780092476000,773.24136889,0.00039379,120]
[423413911,1780092476000,958.81929743,0.00039379,120]
[423413912,1780092476000,233.5188934,0.00039379,120]
[423413910,1780092476000,579.88197956,0.00039379,120]
[423413907,1780092476000,201.93286098,0.00039379,120]
[423413901,1780092476000,225.18697532,0.00039379,120]
[423413906,1780092476000,151.0,0.00039379,120]
[423413903,1780092476000,745.65223615,0.00039379,120]
[423413905,1780092476000,209.40437684,0.00039379,120]
[423413904,1780092476000,200.0,0.00039379,120]
[423413915,1780092476000,217.15233878,0.00039379,120]
[423413900,1780092476000,924.60877283,0.00039379,120]
[423413908,1780092476000,200.0,0.00039379,120]
[423413914,1780092476000,500.0,0.00039379,120]
[423413902,1780092476000,500.0,0.00039379,120]
[423413918,1780092476000,209.40437684,0.00039379,120]
[423413916,1780092476000,200.0,0.00039379,120]
[423413932,1780092476000,200.0,0.00039379,120]
[423413931,1780092476000,500.0,0.00039379,120]
[423413929,1780092476000,500.0,0.00039379,120]
[423413927,1780092476000,225.18697532,0.00039379,120]
[423413928,1780092476000,151.0,0.00039379,120]
[423413926,1780092476000,217.15233878,0.00039379,120]
[423413930,1780092476000,623.58710447,0.00039379,120]
[423413924,1780092476000,275.92646079,0.00039379,120]
[423413923,1780092476000,242.15909246,0.00039379,120]
[423413921,1780092476000,500.0,0.00039379,120]
[423413922,1780092476000,719.89917803,0.00039379,120]
[423413920,1780092476000,601.3376128,0.00039379,120]
[423413919,1780092476000,500.0,0.00039379,120]
[423413917,1780092476000,151.0,0.00039379,120]
[423413925,1780092476000,500.0,0.00039379,120]
[423413944,1780092477000,151.0,0.00039379,120]
[423413940,1780092477000,500.0,0.00039379,120]
[423413942,1780092477000,233.5188934,0.00039379,120]
[423413941,1780092477000,200.0,0.00039379,120]
[423413939,1780092477000,646.65982734,0.00039379,120]
[423413935,1780092477000,233.5188934,0.00039379,120]
[423413938,1780092477000,500.0,0.00039379,120]
[423413936,1780092477000,151.0,0.00039379,120]
[423413934,1780092477000,225.18697532,0.00039379,120]
[423413943,1780092477000,242.15909246,0.00039379,120]
[423413937,1780092477000,200.0,0.00039379,120]
[423413945,1780092477000,200.0,0.00039379,120]
[423413933,1780092477000,280.17462272,0.00039379,120]
[423413948,1780092477000,500.0,0.00039379,120]
[423413958,1780092477000,500.0,0.00039379,120]
[423413957,1780092477000,500.0,0.00039379,120]
[423413956,1780092477000,695.39793187,0.00039379,120]
[423413954,1780092477000,151.0,0.00039379,120]
[423413955,1780092477000,500.0,0.00039379,120]
[423413946,1780092477000,500.0,0.00039379,120]
[423413951,1780092477000,242.15909246,0.00039379,120]
[423413952,1780092477000,251.11897888,0.00039379,120]
[423413949,1780092477000,288.71285617,0.00039379,120]
[423413950,1780092477000,500.0,0.00039379,120]
[423413947,1780092477000,670.58624095,0.00039379,120]
[423413953,1780092477000,200.0,0.00039379,120]
[423413970,1780092478000,151.0,0.00039379,120]
[423413968,1780092478000,270.0455652,0.00039379,120]
[423413969,1780092478000,200.0,0.00039379,120]
[423413966,1780092478000,500.0,0.00039379,120]
[423413967,1780092478000,260.4103811,0.00039379,120]
[423413964,1780092478000,721.12765534,0.00039379,120]
[423413963,1780092478000,500.0,0.00039379,120]
[423413962,1780092478000,151.0,0.00039379,120]
[423413960,1780092478000,260.4103811,0.00039379,120]
[423413961,1780092478000,200.0,0.00039379,120]
[423413972,1780092478000,747.80937859,0.00039379,120]
[423413965,1780092478000,500.0,0.00039379,120]
[423413959,1780092478000,251.11897888,0.00039379,120]
[423413971,1780092478000,500.0,0.00039379,120]
[423413975,1780092478000,500.0,0.00039379,120]
[423413973,1780092478000,500.0,0.00039379,120]
[423413986,1780092478000,804.17102365,0.00039379,120]
[423413984,1780092478000,200.0,0.00039379,120]
[423413983,1780092478000,500.0,0.00039379,120]
[423413982,1780092478000,280.03725111,0.00039379,120]
[423413980,1780092478000,775.4783256,0.00039379,120]
[423413985,1780092478000,500.0,0.00039379,120]
[423413979,1780092478000,500.0,0.00039379,120]
[423413977,1780092478000,151.0,0.00039379,120]
[423413978,1780092478000,200.0,0.00039379,120]
[423413976,1780092478000,153.27316643,0.00039379,120]
[423413974,1780092478000,270.0455652,0.00039379,120]
[423413981,1780092478000,500.0,0.00039379,120]
[423413997,1780092479000,500.0,0.00039379,120]
[423413994,1780092479000,310.32534478,0.00039379,120]
[423413995,1780092479000,200.0,0.00039379,120]
[423413991,1780092479000,200.0,0.00039379,120]
[423413993,1780092479000,500.0,0.00039379,120]
[423413990,1780092479000,500.0,0.00039379,120]
[423413988,1780092479000,290.3986294,0.00039379,120]
[423413989,1780092479000,500.0,0.00039379,120]
[423413987,1780092479000,500.0,0.00039379,120]
[423413996,1780092479000,864.78058953,0.00039379,120]
[423413992,1780092479000,833.92535152,0.00039379,120]
[423413998,1780092479000,500.0,0.00039379,120]
[423414003,1780092479000,500.0,0.00039379,120]
[423414001,1780092479000,200.0,0.00039379,120]
[423414009,1780092479000,964.36669258,0.00039379,120]
[423414010,1780092479000,500.0,0.00039379,120]
[423414007,1780092479000,500.0,0.00039379,120]
[423414008,1780092479000,500.0,0.00039379,120]
[423414006,1780092479000,200.0,0.00039379,120]
[423414000,1780092479000,896.77747134,0.00039379,120]
[423414005,1780092479000,929.95823778,0.00039379,120]
[423414002,1780092479000,500.0,0.00039379,120]
[423414011,1780092479000,200.0,0.00039379,120]
[423413999,1780092479000,500.0,0.00039379,120]
[423414004,1780092479000,500.0,0.00039379,120]
[423414012,1780092480000,500.0,0.00039379,120]
[423414013,1780092480000,500.0,0.00039379,120]
[423414015,1780092480000,500.0,0.00039379,120]
[423414016,1780092480000,200.0,0.00039379,120]
[423414018,1780092480000,500.0,0.00039379,120]
[423414014,1780092480000,1000.04826021,0.00039379,120]
[423414017,1780092480000,500.0,0.00039379,120]
[423414020,1780092480000,500.0,0.00039379,120]
[423414021,1780092480000,200.0,0.00039379,120]
[423414022,1780092480000,500.0,0.00039379,120]
[423414023,1780092480000,500.0,0.00039379,120]
[423414024,1780092480000,200.0,0.00039379,120]
[423414025,1780092480000,500.0,0.00039379,120]
[423414019,1780092480000,1037.05004583,0.00039379,120]
[423414027,1780092481000,200.0,0.00039379,120]
[423414026,1780092481000,500.0,0.00039379,120]
[423414028,1780092481000,500.0,0.00039379,120]
[423414031,1780092481000,500.0,0.00039379,120]
[423414030,1780092481000,500.0,0.00039379,120]
[423414032,1780092481000,500.0,0.00039379,120]
[423414033,1780092481000,151.0,0.00039379,120]
[423414029,1780092481000,500.0,0.00039379,120]
[423414034,1780092482000,151.0,0.00039379,120]
[423414036,1780092483000,151.0,0.00039379,120]
[423414035,1780092483000,151.0,0.00039379,120]
[423414037,1780092484000,151.0,0.00039379,120]
[423414039,1780092484000,151.0,0.00039379,120]
[423414040,1780092484000,151.0,0.00039379,120]
[423414038,1780092484000,151.0,0.00039379,120]
[423414041,1780092487000,1180.0,0.00039379,120]
[423414042,1780092500000,1204.0,0.00039379,120]
[423414045,1780092504000,220.10002618,0.00039379,120]
[423414044,1780092504000,220.10002618,0.00039379,120]
[423414043,1780092504000,220.10002618,0.00039379,120]
[423414046,1780092510000,4091.0,0.00039379,120]
[423414047,1780092541000,48299.0,0.00039379,120]
[423414049,1780092547000,-11.87648089,7.448e-05,2]
[423414048,1780092547000,-349.47697204,7.448e-05,2]
[423414050,1780092573000,-488.12351911,7.448e-05,2]
[423414051,1780092596000,-500.0,7.448e-05,2]
[423414054,1780092626000,-1200.0,7.447e-05,2]
[423414212,1780092648000,2360.0,0.00039379,120]
[423414213,1780092648000,-500.0,7.448e-05,2]
[423414230,1780092650000,-204.91,7.691e-05,2]
[423414228,1780092650000,-150.99,7.671e-05,2]
[423414225,1780092650000,-150.0,7.597e-05,2]
[423414223,1780092650000,-1582.56,7.567e-05,2]
[423414229,1780092650000,-9999.99,7.671e-05,2]
[423414232,1780092650000,-170.21,7.924e-05,2]
[423414226,1780092650000,-167.0,7.671e-05,2]
[423414227,1780092650000,-9999.99,7.671e-05,2]
[423414233,1780092650000,-28286.978019,7.945e-05,2]
[423414218,1780092650000,-209.09056759,7.477e-05,2]
[423414234,1780092650000,-291.22,7.988e-05,2]
[423414222,1780092650000,-261.415,7.567e-05,2]
[423414220,1780092650000,-150.0,7.522e-05,2]
[423414219,1780092650000,-500.0,7.509e-05,2]
[423414221,1780092650000,-644.35280267,7.567e-05,2]
[423414217,1780092650000,-185.45038974,7.458e-05,2]
[423414216,1780092650000,-30.09802406,7.458e-05,2]
[423414214,1780092650000,-1800.0,7.448e-05,2]
[423414215,1780092650000,-984.56561188,7.448e-05,2]
[423414224,1780092650000,-17920.53219733,7.567e-05,2]
[423414231,1780092650000,-299.99,7.691e-05,2]
[423414245,1780092650000,-1335.97,8.569e-05,2]
[423414236,1780092650000,-250.0,8.192e-05,2]
[423414235,1780092650000,-435.273289,8.178e-05,2]
[423414256,1780092650000,-3069.242,9.23e-05,2]
[423414255,1780092650000,-160.0,9.167e-05,2]
[423414252,1780092650000,-445.5295,8.98e-05,2]
[423414251,1780092650000,-500.0,8.98e-05,2]
[423414254,1780092650000,-1600.0,9.08e-05,2]
[423414250,1780092650000,-2500.0,8.919e-05,2]
[423414249,1780092650000,-170.21,8.905e-05,2]
[423414247,1780092650000,-1000.0,8.65e-05,2]
[423414253,1780092650000,-2351.0,9.011e-05,2]
[423414243,1780092650000,-204.91,8.501e-05,2]
[423414237,1780092650000,-1680.0,8.192e-05,2]
[423414242,1780092650000,-500.0,8.493e-05,2]
[423414241,1780092650000,-170.21,8.251e-05,2]
[423414244,1780092650000,-500.0,8.514e-05,2]
[423414239,1780092650000,-2000.0,8.219e-05,2]
[423414240,1780092650000,-3576.68,8.219e-05,2]
[423414246,1780092650000,-170.21,8.578e-05,2]
[423414238,1780092650000,-500.0,8.219e-05,2]
[423414248,1780092650000,-175.62,8.839e-05,2]
[423414263,1780092651000,-350.0,9.691e-05,2]
[423414264,1780092651000,-5000.0,9.76e-05,2]
[423414261,1780092651000,-175.62,9.33e-05,2]
[423414262,1780092651000,-1000.0,9.668e-05,2]
[423414258,1780092651000,-170.21,9.232e-05,2]
[423414259,1780092651000,-2000.0,9.247e-05,2]
[423414260,1780092651000,-1004.74746624,9.247e-05,2]
[423414257,1780092651000,-354.063,9.23e-05,2]
[423414269,1780092651000,-488035.5066521,9.86e-05,2]
[423414270,1780092651000,-32000.34488127,9.86e-05,2]
[423414266,1780092651000,-250.0,9.841e-05,2]
[423414267,1780092651000,-151.0,9.857e-05,2]
[423414265,1780092651000,-175.62,9.821e-05,2]
[423414280,1780092651000,1204.0,0.00039379,120]
[423414276,1780092651000,-4054.6759823,9.86e-05,2]
[423414279,1780092651000,-2234.94,9.86e-05,2]
[423414277,1780092651000,-2059.65403375,9.86e-05,2]
[423414274,1780092651000,-645.55505471,9.86e-05,2]
[423414278,1780092651000,-3292.01256,9.86e-05,2]
[423414272,1780092651000,-239532.76099217,9.86e-05,2]
[423414273,1780092651000,-53760.32826595,9.86e-05,2]
[423414271,1780092651000,-185693.72537446,9.86e-05,2]
[423414268,1780092651000,-112864.52058667,9.859e-05,2]
[423414275,1780092651000,-10865.6130195,9.86e-05,2]
[423414287,1780092652000,-8460.0,9.86e-05,2]
[423414281,1780092652000,-1860.32299278,9.86e-05,2]
[423414282,1780092652000,-2136.29999999,9.86e-05,2]
[423414284,1780092652000,-1637.20813727,9.86e-05,2]
[423414283,1780092652000,-2347.55464834,9.86e-05,2]
[423414285,1780092652000,-1418.79494381,9.86e-05,2]
[423414286,1780092652000,-3313.65792298,9.86e-05,2]
[423414288,1780092652000,-24293.58140421,9.86e-05,2]
[423414293,1780092652000,-8943.78386462,9.86e-05,2]
[423414291,1780092652000,-8874.1763918,9.86e-05,2]
[423414290,1780092652000,-1921.85158611,9.86e-05,2]
[423414292,1780092652000,-8947.21879473,9.86e-05,2]
[423414295,1780092652000,-280.570408,9.86e-05,2]
[423414296,1780092652000,-7494.99999999,9.86e-05,2]
[423414297,1780092652000,-435.5076129,9.86e-05,2]
[423414294,1780092652000,-9077.54866152,9.86e-05,2]
[423414289,1780092652000,-215.5484138,7.468e-05,2]
[423414300,1780092653000,-10081.27111997,9.86e-05,2]
[423414298,1780092653000,-2500.0,8.88e-05,2]
[423414301,1780092653000,-706.30793389,9.86e-05,2]
[423414299,1780092653000,-370.51693755,9.86e-05,2]
[423414303,1780092653000,-2278.1781833,9.86e-05,2]
[423414304,1780092653000,-751.13547657,9.86e-05,2]
[423414305,1780092653000,150.0,0.00039379,120]
[423414306,1780092653000,150.0,0.00039379,120]
[423414302,1780092653000,-707.85526434,9.86e-05,2]
[423414308,1780092654000,150.0,0.00039379,120]
[423414307,1780092654000,150.0,0.00039379,120]
[423414310,1780092681000,8183.0,0.00039379,120]
[423414309,1780092681000,-1112.31653355,9.86e-05,2]
[423414311,1780092704000,-150.0,7.224e-05,2]
[423414312,1780092706000,764.0,0.00039379,120]
[423414313,1780092707000,453.0,0.00039379,120]
[423414314,1780092711000,330.0,9.863e-05,3]
[423414315,1780092721000,1626.0,0.00039379,120]
[423414316,1780092725000,150.0,0.00039379,120]
[423414317,1780092728000,150.0,0.00039379,120]
[423414319,1780092728000,150.0,0.00039379,120]
[423414320,1780092728000,150.0,0.00039379,120]
[423414318,1780092728000,150.0,0.00039379,120]
[423414322,1780092729000,150.0,0.00039379,120]
[423414321,1780092729000,150.0,0.00039379,120]
[423414323,1780092730000,150.0,0.00039379,120]
[423414325,1780092731000,171.82200272,0.00039379,120]
[423414324,1780092731000,150.0,0.00039379,120]
[423414326,1780092732000,500.0,0.00039379,120]
[423414327,1780092755000,-500.0,7.447e-05,2]
[423414334,1780092772000,500.0,0.00039379,120]
[423414329,1780092772000,151.0,0.00039379,120]
[423414328,1780092772000,177.12318664,0.00039379,120]
[423414332,1780092772000,251.0,0.00039379,120]
[423414331,1780092772000,151.0,0.00039379,120]
[423414333,1780092772000,200.0,0.00039379,120]
[423414330,1780092772000,500.0,0.00039379,120]
[423414336,1780092772000,3000.0,0.00039379,120]
[423414337,1780092772000,500.0,0.00039379,120]
[423414338,1780092772000,151.0,0.00039379,120]
[423414339,1780092772000,156.587,0.00039379,120]
[423414340,1780092772000,518.5,0.00039379,120]
[423414341,1780092772000,200.0,0.00039379,120]
[423414335,1780092772000,1000.0,0.00039379,120]
[423414349,1780092773000,520.0,0.00039379,120]
[423414347,1780092773000,500.0,0.00039379,120]
[423414348,1780092773000,151.0,0.00039379,120]
[423414344,1780092773000,3000.0,0.00039379,120]
[423414345,1780092773000,500.0,0.00039379,120]
[423414351,1780092773000,500.0,0.00039379,120]
[423414343,1780092773000,1000.0,0.00039379,120]
[423414342,1780092773000,260.287,0.00039379,120]
[423414346,1780092773000,151.0,0.00039379,120]
[423414352,1780092773000,162.380719,0.00039379,120]
[423414350,1780092773000,300.0,0.00039379,120]
[423414354,1780092773000,6000.0,0.00039379,120]
[423414356,1780092773000,200.0,0.00039379,120]
[423414355,1780092773000,500.0,0.00039379,120]
[423414358,1780092773000,151.0,0.00039379,120]
[423414357,1780092773000,269.917619,0.00039379,120]
[423414359,1780092773000,1000.0,0.00039379,120]
[423414362,1780092773000,500.0,0.00039379,120]
[423414361,1780092773000,151.0,0.00039379,120]
[423414360,1780092773000,2270.93149805,0.00039379,120]
[423414363,1780092773000,151.0,0.00039379,120]
[423414353,1780092773000,537.6845,0.00039379,120]
[423414373,1780092774000,300.83345337,0.00039379,120]
[423414372,1780092774000,518.5,0.00039379,120]
[423414370,1780092774000,151.0,0.00039379,120]
[423414371,1780092774000,4000.0,0.00039379,120]
[423414364,1780092774000,168.3888056,0.00039379,120]
[423414368,1780092774000,539.24,0.00039379,120]
[423414367,1780092774000,557.5788265,0.00039379,120]
[423414366,1780092774000,311.1,0.00039379,120]
[423414365,1780092774000,500.0,0.00039379,120]
[423414375,1780092774000,180.15560403,0.00039379,120]
[423414376,1780092774000,1000.0,0.00039379,120]
[423414369,1780092774000,500.0,0.00039379,120]
[423414378,1780092774000,151.0,0.00039379,120]
[423414374,1780092774000,279.9045709,0.00039379,120]
[423414387,1780092774000,500.0,0.00039379,120]
[423414386,1780092774000,537.6845,0.00039379,120]